fUSD/lending_fUSD_20260630
["ID","MTS","AMOUNT","RATE_DAILY","PERIOD"]
[426726945,1782761469000,-225.244481,0.000365,30]
[426726939,1782761469000,-151.0,0.000365,30]
[426726941,1782761469000,-616.283177,0.000365,20]
[426726943,1782761469000,-901.772022,0.000365,30]
[426726947,1782761469000,-151.0,0.000365,30]
[426726955,1782761469000,-1722.848997,0.000365,30]
[426726956,1782761469000,-311.966221,0.000365,30]
[426726946,1782761469000,-151.0,0.000365,30]
[426726923,1782761469000,-368.199655,0.000365,7]
[426726935,1782761469000,-616.283177,0.000365,20]
[426726932,1782761469000,-242.942116,0.000365,30]
[426726902,1782761469000,-828.426999,0.000365,30]
[426726921,1782761469000,-1443.491756,0.000365,7]
[426726948,1782761469000,-295.513275,0.000365,30]
[426726901,1782761469000,-828.426999,0.000365,30]
[426726900,1782761469000,-166.414994,0.000365,30]
[426726899,1782761469000,-1950.878986,0.000365,30]
[426726898,1782761469000,-828.426999,0.000365,30]
[426726904,1782761469000,-311.954531,0.000365,30]
[426726903,1782761469000,-151.0,0.000365,30]
[426726905,1782761469000,-585.374962,0.000365,30]
[426726907,1782761469000,-1443.491756,0.000365,7]
[426726906,1782761469000,-311.954531,0.000365,30]
[426726910,1782761469000,-1443.491756,0.000365,7]
[426726933,1782761469000,-295.513275,0.000365,30]
[426726909,1782761469000,-368.199655,0.000365,7]
[426726908,1782761469000,-585.374962,0.000365,30]
[426726911,1782761469000,-311.954531,0.000365,30]
[426726914,1782761469000,-526.973479,0.000365,30]
[426726913,1782761469000,-368.199655,0.000365,7]
[426726915,1782761469000,-311.954531,0.000365,30]
[426726916,1782761469000,-1443.491756,0.000365,7]
[426726917,1782761469000,-368.199655,0.000365,7]
[426726920,1782761469000,-4128.547601,0.000365,7]
[426726919,1782761469000,-585.374962,0.000365,30]
[426726918,1782761469000,-526.973479,0.000365,30]
[426726922,1782761469000,-526.973479,0.000365,30]
[426726912,1782761469000,-585.374962,0.000365,30]
[426726950,1782761469000,-151.0,0.000365,30]
[426726942,1782761469000,-295.513275,0.000365,30]
[426726952,1782761469000,-2760.94787,0.000365,30]
[426726982,1782761469000,-151.0,0.000365,30]
[426726989,1782761469000,-311.919381,0.000365,30]
[426726987,1782761469000,-4252.868314,0.000365,30]
[426726983,1782761469000,-365.414,0.000365,30]
[426726986,1782761469000,-4252.868314,0.000365,30]
[426726985,1782761469000,-365.414,0.000365,30]
[426726988,1782761469000,-4252.868314,0.000365,30]
[426726984,1782761469000,-858.216946,0.000365,30]
[426726991,1782761469000,-311.919381,0.000365,30]
[426726998,1782761469000,-151.0,0.000365,30]
[426726996,1782761469000,-332.810245,0.000365,30]
[426727002,1782761469000,-332.810245,0.000365,30]
[426726994,1782761469000,-151.0,0.000365,30]
[426726992,1782761469000,-311.919381,0.000365,30]
[426726993,1782761469000,-311.919381,0.000365,30]
[426726995,1782761469000,-5772.041739,0.000365,30]
[426726999,1782761469000,-332.810245,0.000365,30]
[426727001,1782761469000,-151.0,0.000365,30]
[426727000,1782761469000,-5772.041739,0.000365,30]
[426727004,1782761469000,-212.861435,0.000365,30]
[426727003,1782761469000,-5772.041739,0.000365,30]
[426727007,1782761469000,-151.0,0.000365,30]
[426727006,1782761469000,-332.810245,0.000365,30]
[426726951,1782761469000,-151.0,0.000365,30]
[426727005,1782761469000,-151.0,0.000365,30]
[426726981,1782761469000,-858.216946,0.000365,30]
[426726979,1782761469000,-151.0,0.000365,30]
[426726997,1782761469000,-5772.041739,0.000365,30]
[426726980,1782761469000,-365.414,0.000365,30]
[426726953,1782761469000,-901.772022,0.000365,30]
[426726954,1782761469000,-151.0,0.000365,30]
[426726990,1782761469000,-4252.868314,0.000365,30]
[426726957,1782761469000,-2760.94787,0.000365,30]
[426726959,1782761469000,-151.0,0.000365,30]
[426726962,1782761469000,-151.0,0.000365,30]
[426726963,1782761469000,-2760.94787,0.000365,30]
[426726961,1782761469000,-311.966221,0.000365,30]
[426726958,1782761469000,-151.0,0.000365,30]
[426726964,1782761469000,-151.0,0.000365,30]
[426726968,1782761469000,-311.966221,0.000365,30]
[426726967,1782761469000,-151.0,0.000365,30]
[426726960,1782761469000,-1722.848997,0.000365,30]
[426726966,1782761469000,-1722.848997,0.000365,30]
[426726978,1782761469000,-189.567894,0.000365,30]
[426726970,1782761469000,-151.0,0.000365,30]
[426726969,1782761469000,-2760.94787,0.000365,30]
[426726972,1782761469000,-311.966221,0.000365,30]
[426726971,1782761469000,-1722.848997,0.000365,30]
[426726973,1782761469000,-858.216946,0.000365,30]
[426726974,1782761469000,-151.0,0.000365,30]
[426726976,1782761469000,-365.414,0.000365,30]
[426726965,1782761469000,-151.0,0.000365,30]
[426726977,1782761469000,-858.216946,0.000365,30]
[426726975,1782761469000,-151.0,0.000365,30]
[426727041,1782761470000,-1105.266591,0.000365,30]
[426727045,1782761470000,-1649.36794,0.000365,7]
[426727048,1782761470000,-1649.36794,0.000365,7]
[426727047,1782761470000,-202.743987,0.000365,30]
[426727039,1782761470000,-1799.170193,0.000365,30]
[426727042,1782761470000,-1799.170193,0.000365,30]
[426727043,1782761470000,-1105.266591,0.000365,30]
[426727046,1782761470000,-1105.266591,0.000365,30]
[426727038,1782761470000,-630.160722,0.000365,7]
[426727040,1782761470000,-630.160722,0.000365,7]
[426727044,1782761470000,-1105.266591,0.000365,30]
[426727049,1782761470000,-151.0,0.000365,30]
[426727060,1782761470000,-3701.167344,0.000365,30]
[426727061,1782761470000,-170.863335,0.000365,30]
[426727050,1782761470000,-202.743987,0.000365,30]
[426727052,1782761470000,-170.863335,0.000365,30]
[426727053,1782761470000,-1649.36794,0.000365,7]
[426727054,1782761470000,-151.0,0.000365,30]
[426727055,1782761470000,-202.743987,0.000365,30]
[426727057,1782761470000,-170.863335,0.000365,30]
[426727059,1782761470000,-202.743987,0.000365,30]
[426727058,1782761470000,-1649.36794,0.000365,7]
[426727056,1782761470000,-3701.167344,0.000365,30]
[426727062,1782761470000,-3701.167344,0.000365,30]
[426727033,1782761470000,-151.0,0.000365,30]
[426727051,1782761470000,-3701.167344,0.000365,30]
[426727034,1782761470000,-151.0,0.000365,30]
[426727009,1782761470000,-151.0,0.000365,30]
[426727035,1782761470000,-1799.170193,0.000365,30]
[426727008,1782761470000,-151.0,0.000365,30]
[426727010,1782761470000,-9316.764672,0.000365,30]
[426727070,1782761470000,-151.0,0.000365,30]
[426727012,1782761470000,-229.43723,0.000365,30]
[426727013,1782761470000,-1020.147463,0.000365,30]
[426727011,1782761470000,-9316.764672,0.000365,30]
[426727015,1782761470000,-229.43723,0.000365,30]
[426727016,1782761470000,-1020.147463,0.000365,30]
[426727014,1782761470000,-9316.764672,0.000365,30]
[426727017,1782761470000,-9316.764672,0.000365,30]
[426727018,1782761470000,-229.43723,0.000365,30]
[426727021,1782761470000,-1020.147463,0.000365,30]
[426727020,1782761470000,-229.43723,0.000365,30]
[426727025,1782761470000,-151.0,0.000365,30]
[426727024,1782761470000,-151.0,0.000365,30]
[426727022,1782761470000,-151.0,0.000365,30]
[426727023,1782761470000,-879.123218,0.000365,7]
[426727037,1782761470000,-1799.170193,0.000365,30]
[426727026,1782761470000,-879.123218,0.000365,7]
[426727027,1782761470000,-151.0,0.000365,30]
[426727029,1782761470000,-879.123218,0.000365,7]
[426727031,1782761470000,-151.0,0.000365,30]
[426727032,1782761470000,-630.160722,0.000365,7]
[426727030,1782761470000,-151.0,0.000365,30]
[426727028,1782761470000,-879.123218,0.000365,7]
[426727036,1782761470000,-630.160722,0.000365,7]
[426727063,1782761470000,-151.0,0.000365,30]
[426727019,1782761470000,-1020.147463,0.000365,30]
[426727073,1782761470000,-238.122514,0.000365,30]
[426727099,1782761470000,-166.9405,0.000365,30]
[426727097,1782761470000,-1558.167375,0.000365,30]
[426727096,1782761470000,-374.877929,0.000365,30]
[426727101,1782761470000,-1874.646646,0.000365,30]
[426727100,1782761470000,-151.0,0.000365,30]
[426727106,1782761470000,-275.286234,0.000365,30]
[426727102,1782761470000,-151.0,0.000365,15]
[426727110,1782761470000,-166.9405,0.000365,30]
[426727105,1782761470000,-166.9405,0.000365,30]
[426727104,1782761470000,-1794.946463,0.000365,30]
[426727107,1782761470000,-1874.646646,0.000365,30]
[426727103,1782761470000,-1558.167375,0.000365,30]
[426727091,1782761470000,-374.877929,0.000365,30]
[426727109,1782761470000,-1794.946463,0.000365,30]
[426727111,1782761470000,-1794.946463,0.000365,30]
[426727113,1782761470000,-151.0,0.000365,30]
[426727114,1782761470000,-1502.312856,0.000365,30]
[426727117,1782761470000,-151.0,0.000365,30]
[426727115,1782761470000,-492.080444,0.000365,30]
[426727121,1782761470000,-492.080444,0.000365,30]
[426727119,1782761470000,-151.0,0.000365,30]
[426727116,1782761470000,-912.039531,0.000365,30]
[426727118,1782761470000,-151.0,0.000365,30]
[426727120,1782761470000,-1502.312856,0.000365,30]
[426727122,1782761470000,-912.039531,0.000365,30]
[426727064,1782761470000,-170.863335,0.000365,30]
[426727108,1782761470000,-1558.167375,0.000365,30]
[426727089,1782761470000,-374.877929,0.000365,30]
[426727112,1782761470000,-166.9405,0.000365,30]
[426727098,1782761470000,-1794.946463,0.000365,30]
[426727067,1782761470000,-151.0,0.000365,30]
[426727095,1782761470000,-151.0,0.000365,30]
[426727074,1782761470000,-2423.808215,0.000365,30]
[426727066,1782761470000,-151.0,0.000365,30]
[426727069,1782761470000,-213.943681,0.000365,30]
[426727065,1782761470000,-151.0,0.000365,30]
[426727071,1782761470000,-2423.808215,0.000365,30]
[426727068,1782761470000,-151.0,0.000365,30]
[426727087,1782761470000,-1211.988348,0.000365,30]
[426727086,1782761470000,-1211.988348,0.000365,30]
[426727076,1782761470000,-213.943681,0.000365,30]
[426727077,1782761470000,-2423.808215,0.000365,30]
[426727075,1782761470000,-151.0,0.000365,30]
[426727072,1782761470000,-213.943681,0.000365,30]
[426727084,1782761470000,-155.180973,0.000365,30]
[426727094,1782761470000,-1874.646646,0.000365,30]
[426727083,1782761470000,-155.180973,0.000365,30]
[426727092,1782761470000,-1874.646646,0.000365,30]
[426727090,1782761470000,-374.877929,0.000365,30]
[426727085,1782761470000,-1211.988348,0.000365,30]
[426727088,1782761470000,-1211.988348,0.000365,30]
[426727081,1782761470000,-151.0,0.000365,30]
[426727080,1782761470000,-2423.808215,0.000365,30]
[426727079,1782761470000,-155.180973,0.000365,30]
[426727078,1782761470000,-213.943681,0.000365,30]
[426727082,1782761470000,-155.180973,0.000365,30]
[426727093,1782761470000,-1558.167375,0.000365,30]
[426727159,1782761471000,-189.166298,0.000365,30]
[426727164,1782761471000,-165.035682,0.000365,30]
[426727161,1782761471000,-204.172232,0.000365,30]
[426727160,1782761471000,-183.82229,0.000365,30]
[426727165,1782761471000,-183.82229,0.000365,30]
[426727157,1782761471000,-183.82229,0.000365,30]
[426727156,1782761471000,-165.035682,0.000365,30]
[426727154,1782761471000,-183.82229,0.000365,30]
[426727155,1782761471000,-189.166298,0.000365,30]
[426727162,1782761471000,-151.0,0.000365,30]
[426727158,1782761471000,-165.035682,0.000365,30]
[426727163,1782761471000,-151.0,0.000365,30]
[426727177,1782761471000,-338.09,0.00036564,120]
[426727166,1782761471000,-151.0,0.000365,30]
[426727167,1782761471000,-151.0,0.000365,30]
[426727173,1782761471000,-713.34,0.00036564,120]
[426727169,1782761471000,-151.0,0.000365,30]
[426727172,1782761471000,-310.49,0.00036564,120]
[426727175,1782761471000,-1315.14,0.00036564,120]
[426727176,1782761471000,-150.0,0.00036564,7]
[426727170,1782761471000,-160.0,0.00036502,11]
[426727174,1782761471000,-447.92,0.00036564,120]
[426727178,1782761471000,-558.9,0.00036564,120]
[426727146,1782761471000,-310.2,0.000365,30]
[426727182,1782761471000,-301.66,0.00036564,120]
[426727168,1782761471000,-165.035682,0.000365,30]
[426727147,1782761471000,-192.05,0.000365,30]
[426727137,1782761471000,-206.275724,0.000365,30]
[426727148,1782761471000,-178.175314,0.000365,30]
[426727123,1782761471000,-151.0,0.000365,30]
[426727124,1782761471000,-1502.312856,0.000365,30]
[426727127,1782761471000,-151.0,0.000365,30]
[426727125,1782761471000,-912.039531,0.000365,30]
[426727130,1782761471000,-492.080444,0.000365,30]
[426727126,1782761471000,-492.080444,0.000365,30]
[426727128,1782761471000,-1502.312856,0.000365,30]
[426727129,1782761471000,-912.039531,0.000365,30]
[426727132,1782761471000,-356.332054,0.000365,30]
[426727131,1782761471000,-356.332054,0.000365,30]
[426727133,1782761471000,-206.275724,0.000365,30]
[426727139,1782761471000,-206.275724,0.000365,30]
[426727136,1782761471000,-166.648474,0.000365,30]
[426727135,1782761471000,-356.332054,0.000365,30]
[426727140,1782761471000,-192.05,0.000365,30]
[426727141,1782761471000,-178.175314,0.000365,30]
[426727179,1782761471000,-577.22,0.00036564,120]
[426727138,1782761471000,-356.332054,0.000365,30]
[426727134,1782761471000,-206.275724,0.000365,30]
[426727142,1782761471000,-192.05,0.000365,30]
[426727149,1782761471000,-310.2,0.000365,30]
[426727151,1782761471000,-310.2,0.000365,30]
[426727152,1782761471000,-189.166298,0.000365,30]
[426727153,1782761471000,-189.166298,0.000365,30]
[426727144,1782761471000,-192.05,0.000365,30]
[426727150,1782761471000,-310.2,0.000365,30]
[426727145,1782761471000,-178.175314,0.000365,30]
[426727143,1782761471000,-178.175314,0.000365,30]
[426727184,1782761471000,-500.0,0.00036597,12]
[426727171,1782761471000,-6122.0,0.00036563,10]
[426727181,1782761471000,-1016.94,0.00036564,120]
[426727215,1782761471000,-318.87,0.00036793,30]
[426727220,1782761471000,-1271.23752373,0.000368,90]
[426727224,1782761471000,-151.0,0.000368,30]
[426727219,1782761471000,-2502.29733445,0.000368,31]
[426727225,1782761471000,-151.0,0.000368,30]
[426727223,1782761471000,-151.0,0.000368,30]
[426727221,1782761471000,-852892.84411984,0.000368,30]
[426727218,1782761471000,-83096.19035465,0.000368,2]
[426727217,1782761471000,-2336.0,0.00036797,11]
[426727216,1782761471000,-2336.0,0.00036794,11]
[426727222,1782761471000,-2000.0,0.000368,37]
[426727227,1782761471000,-373480.65775703,0.00036812,30]
[426727214,1782761471000,-307.94,0.0003678,120]
[426727226,1782761471000,-151.0,0.000368,30]
[426727232,1782761471000,-338.75425,0.00036869,30]
[426727230,1782761471000,-364.0,0.00036824,7]
[426727229,1782761471000,-160.0,0.00036822,11]
[426727180,1782761471000,-683.71,0.00036564,120]
[426727233,1782761471000,-277.019203,0.00036869,30]
[426727235,1782761471000,-361.08,0.00036875,3]
[426727236,1782761471000,-4369.999999,0.0003688,120]
[426727234,1782761471000,-4145.77853938,0.0003687,30]
[426727239,1782761471000,-11402.07861785,0.00036894,30]
[426727240,1782761471000,-151.0,0.00036897,14]
[426727237,1782761471000,-164.2406,0.00036881,76]
[426727238,1782761471000,-20000.0,0.00036891,41]
[426727228,1782761471000,-2336.0,0.00036822,11]
[426727208,1782761471000,-2336.0,0.00036747,11]
[426727231,1782761471000,-441.34048514,0.00036838,30]
[426727209,1782761471000,-457.04564313,0.00036771,120]
[426727211,1782761471000,-457.29564313,0.00036771,120]
[426727183,1782761471000,-162.75471131,0.00036567,30]
[426727185,1782761471000,-2500.0,0.000366,60]
[426727186,1782761471000,-549.36055193,0.000366,60]
[426727187,1782761471000,-2364.202,0.00036601,45]
[426727189,1782761471000,-151.75,0.00036607,13]
[426727199,1782761471000,-700.0,0.00036654,2]
[426727190,1782761471000,-151.75,0.00036607,13]
[426727192,1782761471000,-151.75,0.00036607,13]
[426727188,1782761471000,-217.367,0.00036601,45]
[426727200,1782761471000,-2336.0,0.00036665,11]
[426727197,1782761471000,-151.83365069,0.00036641,2]
[426727198,1782761471000,-200.0,0.00036644,2]
[426727194,1782761471000,-156.79,0.00036607,13]
[426727196,1782761471000,-1254.44157701,0.00036632,2]
[426727210,1782761471000,-456.54564314,0.00036771,120]
[426727193,1782761471000,-151.74,0.00036607,13]
[426727207,1782761471000,-350.0,0.0003674,2]
[426727206,1782761471000,-203.80061365,0.00036712,60]
[426727213,1782761471000,-160.0,0.00036771,11]
[426727203,1782761471000,-150.0,0.00036687,2]
[426727201,1782761471000,-164.2406,0.00036681,76]
[426727204,1782761471000,-1568.05197126,0.00036691,2]
[426727205,1782761471000,-273.5387136,0.00036697,2]
[426727202,1782761471000,-152.0,0.00036682,7]
[426727191,1782761471000,-151.75,0.00036607,13]
[426727195,1782761471000,-156.78,0.00036607,13]
[426727212,1782761471000,-228.64782157,0.00036771,120]
[426727273,1782761472000,-2705.0,0.00036986,60]
[426727257,1782761472000,-199.5,0.00036971,120]
[426727261,1782761472000,-729.66369564,0.00036985,30]
[426727258,1782761472000,-1875.32,0.0003698,120]
[426727265,1782761472000,-2705.0,0.00036986,60]
[426727270,1782761472000,-2705.0,0.00036986,60]
[426727269,1782761472000,-2705.0,0.00036986,60]
[426727272,1782761472000,-2705.0,0.00036986,60]
[426727266,1782761472000,-2705.0,0.00036986,60]
[426727277,1782761472000,-2705.0,0.00036986,60]
[426727267,1782761472000,-2705.0,0.00036986,60]
[426727268,1782761472000,-2705.0,0.00036986,60]
[426727260,1782761472000,-150.0,0.00036985,30]
[426727276,1782761472000,-2705.0,0.00036986,60]
[426727271,1782761472000,-2705.0,0.00036986,60]
[426727275,1782761472000,-2705.0,0.00036986,60]
[426727274,1782761472000,-2705.0,0.00036986,60]
[426727259,1782761472000,-2034.97,0.0003698,120]
[426727264,1782761472000,-2705.0,0.00036986,60]
[426727256,1782761472000,-227.17,0.00036971,120]
[426727278,1782761472000,-2705.0,0.00036986,60]
[426727244,1782761472000,-100386.05732486,0.000369,120]
[426727242,1782761472000,-192.9,0.000369,120]
[426727243,1782761472000,-85000.0,0.000369,30]
[426727241,1782761472000,-2500.0,0.000369,60]
[426727248,1782761472000,-1817.73,0.000369,120]
[426727249,1782761472000,-1388.18,0.000369,120]
[426727254,1782761472000,-200.16,0.00036971,120]
[426727245,1782761472000,-1156.08,0.000369,120]
[426727250,1782761472000,-2242.66,0.000369,120]
[426727252,1782761472000,-328.94686115,0.0003695,2]
[426727251,1782761472000,-951.96,0.00036924,120]
[426727255,1782761472000,-372.84,0.00036971,120]
[426727263,1782761472000,-484.47231241,0.00036985,30]
[426727253,1782761472000,-300.24,0.00036971,120]
[426727262,1782761472000,-150.0,0.00036985,30]
[426727247,1782761472000,-623.38,0.000369,120]
[426727246,1782761472000,-1193.98,0.000369,120]
[426727288,1782761472000,-189.166298,0.00036986,30]
[426727289,1782761472000,-189.166298,0.00036986,30]
[426727301,1782761472000,-242.093915,0.00036986,30]
[426727304,1782761472000,-151.0,0.00036986,30]
[426727305,1782761472000,-1308.50481918,0.00036986,120]
[426727309,1782761472000,-151.83365069,0.00036995,2]
[426727306,1782761472000,-1002.95375848,0.00036986,120]
[426727307,1782761472000,-1868.0,0.0003699,120]
[426727308,1782761472000,-2029.0,0.0003699,120]
[426727310,1782761472000,-307492.50230622,0.00036996,30]
[426727312,1782761472000,-209740.40460339,0.00036999,14]
[426727311,1782761472000,-151.0,0.00036997,14]
[426727313,1782761472000,-300.0,0.00033548,2]
[426727314,1782761472000,-282.428353,0.000364,30]
[426727315,1782761472000,-151.0,0.000365,30]
[426727317,1782761472000,-1866.37211207,0.00036999,14]
[426727318,1782761472000,-2150.66212967,0.00036999,14]
[426727319,1782761472000,-6064.63270682,0.00036999,14]
[426727290,1782761472000,-183.82229,0.00036986,30]
[426727303,1782761472000,-165.035682,0.00036986,30]
[426727302,1782761472000,-151.0,0.00036986,30]
[426727316,1782761472000,-151.0,0.000365,30]
[426727299,1782761472000,-183.82229,0.00036986,30]
[426727282,1782761472000,-2705.0,0.00036986,60]
[426727283,1782761472000,-2705.0,0.00036986,60]
[426727279,1782761472000,-2705.0,0.00036986,60]
[426727280,1782761472000,-2705.0,0.00036986,60]
[426727281,1782761472000,-2705.0,0.00036986,60]
[426727286,1782761472000,-2705.0,0.00036986,60]
[426727285,1782761472000,-2705.0,0.00036986,60]
[426727287,1782761472000,-2715.47244834,0.00036986,60]
[426727284,1782761472000,-2705.0,0.00036986,60]
[426727295,1782761472000,-189.166298,0.00036986,30]
[426727294,1782761472000,-165.035682,0.00036986,30]
[426727293,1782761472000,-183.82229,0.00036986,30]
[426727296,1782761472000,-183.82229,0.00036986,30]
[426727297,1782761472000,-151.0,0.00036986,30]
[426727292,1782761472000,-165.035682,0.00036986,30]
[426727298,1782761472000,-151.0,0.00036986,30]
[426727291,1782761472000,-189.166298,0.00036986,30]
[426727300,1782761472000,-165.035682,0.00036986,30]
[426727332,1782761473000,-151.0,0.00036986,30]
[426727320,1782761473000,-192.97093767,0.00012282,2]
[426727321,1782761473000,-23.61365104,0.00012282,2]
[426727323,1782761473000,-872.0,0.00030635,30]
[426727322,1782761473000,-872.0,0.00029635,30]
[426727331,1782761473000,-151.0,0.00036986,30]
[426727326,1782761473000,-282.428353,0.00035649,30]
[426727327,1782761473000,-282.428353,0.000364,30]
[426727324,1782761473000,-300.0,0.00033548,2]
[426727325,1782761473000,-151.0,0.00035649,30]
[426727328,1782761473000,-151.0,0.000364,30]
[426727330,1782761473000,-282.428353,0.000365,30]
[426727329,1782761473000,-282.428353,0.000365,30]
[426727333,1782761473000,-179.52779798,0.00036986,30]
[426727349,1782761474000,-282.428353,0.000364,30]
[426727344,1782761474000,-869.13343567,0.000353,30]
[426727342,1782761474000,-872.0,0.00032635,30]
[426727343,1782761474000,-300.0,0.00033548,2]
[426727345,1782761474000,-151.0,0.00035649,30]
[426727346,1782761474000,-218.68389683,0.00035649,30]
[426727341,1782761474000,-595.9373772,0.00031635,30]
[426727338,1782761474000,-261.19,0.00029399,7]
[426727340,1782761474000,-276.0626228,0.00031635,30]
[426727337,1782761474000,-261.19,0.00029399,2]
[426727339,1782761474000,-179.01881874,0.00030273,2]
[426727335,1782761474000,-927.11,0.0002916,30]
[426727336,1782761474000,-849.25,0.00029267,30]
[426727334,1782761474000,-172.41794474,0.00012381,2]
[426727348,1782761474000,-151.0,0.000364,30]
[426727347,1782761474000,-63.74445617,0.00035649,30]
[426727351,1782761474000,-176.27283,0.000365,30]
[426727361,1782761474000,-927.11,0.00029377,2]
[426727355,1782761474000,-151.0,0.00036986,30]
[426727367,1782761474000,-935.16873761,0.00036999,14]
[426727366,1782761474000,-24688.33466077,0.00036999,14]
[426727368,1782761474000,-748.2799996,0.00036999,14]
[426727362,1782761474000,-261.19,0.00029399,30]
[426727358,1782761474000,-508.17526568,0.00029268,7]
[426727360,1782761474000,-849.25,0.00029363,7]
[426727364,1782761474000,-300.0,0.00033548,2]
[426727365,1782761474000,-872.0,0.00033635,30]
[426727359,1782761474000,-418.93473432,0.00029268,7]
[426727357,1782761474000,-2262.97574074,0.00036999,14]
[426727354,1782761474000,-282.428353,0.00036986,30]
[426727356,1782761474000,-282.428353,0.00036986,30]
[426727353,1782761474000,-102.90055502,0.00036986,30]
[426727350,1782761474000,-151.0,0.000365,30]
[426727363,1782761474000,-849.25,0.0002946,2]
[426727352,1782761474000,-282.428353,0.000365,30]
[426727370,1782761566000,-1866.37211207,0.00012282,2]
[426727371,1782761579000,-633.62788793,0.00012282,2]
[426727375,1782761632000,-2150.66212967,0.00012037,2]
[426727376,1782761644000,-1326.45887033,0.00012037,2]
[426727380,1782761678000,309.18,0.00011435,2]
[426727381,1782761679000,309.18,0.00011636,2]
[426727382,1782761680000,309.18,0.00011836,2]
[426727383,1782761697000,-151.0,0.00012037,2]
[426727384,1782761710000,-94.683,0.00012037,2]
[426727386,1782761763000,-151.0,0.00012037,2]
[426727387,1782761775000,-151.0,0.00012037,2]
[426727388,1782761787000,-7.18,0.00012037,2]
[426727389,1782761841000,-166.21306176,0.00012182,2]
[426727390,1782761870000,200.0,0.00012281,7]
[426727393,1782762038000,234.396828,0.0002,120]
[426727394,1782762039000,234.396828,0.00025,120]
[426727396,1782762224000,-282.428353,0.00012182,2]
[426727397,1782762237000,-265.8212004,0.00012182,2]
[426727398,1782762289000,-300.0,0.00012182,2]
[426727399,1782762301000,-79.62663261,0.00012182,2]
[426727401,1782762347000,393.78667,0.00025,120]
[426727400,1782762347000,393.78667,0.0002,120]
[426727402,1782762470000,200.0,0.00011628,2]
[426727403,1782762575000,-189.84359448,0.00012082,2]
[426727404,1782762575000,-150.0,0.00012132,2]
[426727405,1782762575000,-150.0,0.00012181,2]
[426727408,1782762575000,-1921.39082692,0.00012182,2]
[426727407,1782762575000,-3528.59803124,0.00012182,2]
[426727406,1782762575000,-3038.75443676,0.00012182,2]
[426727409,1782762599000,-750.89967007,0.00012182,2]
[426727418,1782762632000,-2552.31753259,0.00012181,2]
[426727420,1782762632000,-305.16142341,0.00012181,2]
[426727419,1782762632000,-503.70314734,0.00012181,2]
[426727421,1782762632000,-1844.63968681,0.00012181,2]
[426727423,1782762632000,-577.10608931,0.00012181,2]
[426727426,1782762632000,-304.0,0.00012181,2]
[426727424,1782762632000,-119196.99352276,0.00012181,2]
[426727425,1782762632000,-38597.21895692,0.00012181,2]
[426727422,1782762632000,-2020.12577,0.00012181,2]
[426727450,1782762638000,-993.92034969,0.00012181,2]
[426727449,1782762638000,-27501.82268812,0.00012181,2]
[426727463,1782762640000,-500.0,0.00012182,2]
[426727468,1782762640000,-388.94518021,0.0001228,2]
[426727466,1782762640000,-309.18,0.00012238,2]